[Event "Groningen Festival 2018-B"]
[Site "Groningen"]
[Date "2018.12.23"]
[Round "2"]
[White "Tromp, Pieter"]
[Black "Karsdorp, Nico"]
[Result "1-0"]
[ECO "B02"]
[WhiteElo "2080"]
[BlackElo "1849"]
[Annotator "NA RC"]
[PlyCount "139"]
[EventDate "2018.12.22"]
[EventType "swiss"]
[EventCountry "NED"]
[SourceTitle "playchess.com"]
[Source "ChessBase"]
[SourceQuality "1"]
[TimeControl "40/5400+30:1800+30"]

1. e4 {[%emt 0:00:00]} Nf6 {[%emt 0:00:00]} 2. Nc3 {[%emt 0:00:02]} d5 {[%emt 0:00:00]} 3. exd5 {[%emt 0:00:20]} Nxd5 {[%emt 0:00:00]} 4. Bc4 {[%emt 0:01:04]} e6 {[%emt 0:00:57]} 5. Qf3 {[%emt 0:00:48]} c6 {[%emt 0:02:46]} 6. Nge2 {[%emt 0:04:32]} Nd7 {[%emt 0:01:49]} 7. d4 {[%emt 0:01:29]} Qf6 {[%emt 0:06:32]} 8. Qe4 {[%emt 0:05:32]} Qg6 {[%emt 0:10:19]} 9. O-O {[%emt 0:08:15]} N7f6 {[%emt 0:06:50]} 10. Qf3 {[%emt 0:03:56]} Qg4 {[%emt 0:12:47]} 11. Qd3 {[%emt 0:07:48]} Qg6 {[%emt 0:04:20]} 12. Qf3 {[%emt 0:07:02]} Qg4 {[%emt 0:03:49]} 13. Qxg4 {[%emt 0:03:21]} Nxg4 {[%emt 0:00:07]} 14. Ne4 {[%emt 0:00:13]} Ngf6 {[%emt 0:00:47]} 15. Ng5 {[%emt 0:03:56]} Bd6 {[%emt 0:02:12]} 16. c3 {[%emt 0:01:09]} h6 {[%emt 0:02:12]} 17. Nf3 {[%emt 0:00:37]} O-O {[%emt 0:01:35]} 18. Bd3 {[%emt 0:01:49]} Rd8 {[%emt 0:01:28]} 19. c4 {[%emt 0:02:57]} Ne7 {[%emt 0:04:57]} 20. b3 {[%emt 0:01:19]} b6 {[%emt 0:04:15]} 21. Bb2 {[%emt 0:01:00]} Bb7 {[%emt 0:00:40]} 22. Rfd1 {[%emt 0:01:16]} c5 {[%emt 0:02:18]} 23. Ne5 {[%emt 0:07:49]} Rac8 {[%emt 0:06:03]} 24. Ng3 {[%emt 0:06:50]} cxd4 {[%emt 0:01:46]} 25. Bxd4 {[%emt 0:00:29]} Nc6 {[%emt 0:00:33]} 26. Nxc6 {[%emt 0:01:00]} Bxc6 {[%emt 0:00:06]} 27. Bc3 {[%emt 0:02:28]} Be7 {[%emt 0:03:59]} 28. Bc2 {[%emt 0:05:04]} Rxd1+ {[%emt 0:01:08]} 29. Rxd1 {[%emt 0:01:17]} Rd8 {[%emt 0:00:18]} 30. Rxd8+ {[%emt 0:00:47]} Bxd8 {[%emt 0:00:06]} 31. f3 {[%emt 0:01:06]} Be7 {[%emt 0:02:14]} 32. b4 {[%emt 0:00:49]} Nd7 {[%emt 0:02:13]} 33. Kf2 {[%emt 0:01:38]} Bf6 {[%emt 0:01:16]} 34. Bxf6 {[%emt 0:00:16]} Nxf6 {[%emt 0:00:08]} 35. Ke3 {[%emt 0:00:43]} Kf8 {[%emt 0:01:32]} 36. Kd4 {[%emt 0:04:06]} Ke7 {[%emt 0:00:18]} 37. c5 {[%emt 0:00:50]} Nd5 {[%emt 0:04:19]} 38. a3 {[%emt 0:01:35]} Nf4 {[%emt 0:01:06]} 39. Ne4 {[%emt 0:00:15]} Nxg2 {[%emt 0:01:10]} 40. Nd6 {[%emt 0:00:09]} bxc5+ {[%emt 0:02:24]} 41. Kxc5 {[%emt 0:30:31]} Bxf3 {[%emt 0:33:59]} 42. Nc8+ {[%emt 0:00:40]} Kd7 {[%emt 0:00:18]} 43. Nxa7 {[%emt 0:00:07]} e5 {[%emt 0:03:58]} 44. Ba4+ {[%emt 0:02:25]} Kc7 {[%emt 0:00:59]} 45. b5 {[%emt 0:04:46]} Nf4 {[%emt 0:00:00]} 46. b6+ {[%emt 0:00:00]} Kb7 {[%emt 0:00:00]} 47. Bd7 {[%emt 0:00:00]} Ne6+ {[%emt 0:00:00]} 48. Bxe6 {[%emt 0:00:00]} fxe6 {[%emt 0:00:00]} 49. Nb5 {[%emt 0:00:00]} g5 {[%emt 0:00:00]} 50. Nd6+ {[%emt 0:00:00]} Ka6 {[%emt 0:00:00]} 51. Nf7 {[%emt 0:00:00]} e4 {[%emt 0:00:00]} 52. Kd4 {[%emt 0:00:00]} Kxb6 {[%emt 0:00:00]} 53. Nxh6 {[%emt 0:00:00]} g4 {[%emt 0:00:00]} 54. Nf7 {[%emt 0:00:00]} Kb5 {[%emt 0:00:00]} 55. Nd6+ {[%emt 0:00:00]} Ka4 {[%emt 0:00:00]} 56. Nxe4 {[%emt 0:00:00]} Kxa3 {[%emt 0:00:00]} 57. Ng5 {[%emt 0:00:00]} Bd1 {[%emt 0:00:00]} 58. Nxe6 {[%emt 0:00:00]} Kb2 {[%emt 0:00:00]} 59. Ke3 {[%emt 0:00:00]} Kc3 {[%emt 0:00:00]} 60. Kf4 {[%emt 0:00:00]} Kd3 {[%emt 0:01:05]} 61. Nc5+ {[%emt 0:00:00]} Kd4 {[%emt 0:00:43]} 62. Ne4 {[%emt 0:00:00]} Bc2 {[%emt 0:08:39]} 63. Nf6 {[%emt 0:00:00]} Bd1 {[%emt 0:00:00]} 64. Nxg4 {[%emt 0:00:00]} Bxg4 {[%emt 0:00:00]} 65. Kxg4 {[%emt 0:00:00]} Ke5 {[%emt 0:00:00]} 66. Kg5 {[%emt 0:00:00]} Ke6 {[%emt 0:00:00]} 67. Kg6 {[%emt 0:00:00]} Ke7 {[%emt 0:00:00]} 68. Kg7 {[%emt 0:00:00]} Ke6 {[%emt 0:00:00]} 69. h4 {[%emt 0:00:00]} Kf5 {[%emt 0:00:00]} 70. h5 {[%emt 0:00:00]} 1-0

[Event "Groningen Festival 2018-B"]
[Site "Groningen"]
[Date "2018.12.23"]
[Round "2"]
[White "Wissmann, Dolf"]
[Black "Baier, Frederic"]
[Result "1-0"]
[ECO "C00"]
[WhiteElo "2049"]
[BlackElo "1824"]
[Annotator "NA RC"]
[PlyCount "79"]
[EventDate "2018.12.22"]
[EventType "swiss"]
[EventCountry "NED"]
[SourceTitle "playchess.com"]
[Source "ChessBase"]
[SourceQuality "1"]
[TimeControl "40/5400+30:1800+30"]

1. e4 e6 {[%emt 1:30:30]} 2. b3 {[%emt 1:31:00]} d5 {[%emt 0:00:30]} 3. Bb2 {[%emt 0:00:00]} dxe4 {[%emt 0:00:30]} 4. Nc3 {[%emt 0:01:00]} Nf6 {[%emt 0:00:30]} 5. g4 {[%emt 0:00:30]} h6 {[%emt 0:00:30]} 6. Qe2 {[%emt 0:00:30]} Bd7 {[%emt 0:00:30]} 7. Bg2 {[%emt 0:00:30]} Bc6 {[%emt 0:00:30]} 8. O-O-O {[%emt 0:00:30]} Nbd7 {[%emt 0:00:30]} 9. Nxe4 {[%emt 0:00:30]} Nxe4 {[%emt 0:00:30]} 10. Bxe4 Bxe4 11. Qxe4 c6 {[%emt 0:01:00]} 12. Nf3 {[%emt 0:01:30]} Nf6 {[%emt 0:00:30]} 13. Qe2 {[%emt 0:00:30]} Nxg4 {[%emt 0:00:30]} 14. Rhg1 {[%emt 0:00:30]} Nf6 {[%emt 0:00:30]} 15. Ne5 {[%emt 0:00:30]} Qe7 {[%emt 0:00:30]} 16. Rg3 {[%emt 0:00:30]} Nd7 {[%emt 0:00:30]} 17. Nc4 {[%emt 0:00:30]} O-O-O {[%emt 0:00:30]} 18. b4 {[%emt 0:00:30]} Nb6 {[%emt 0:00:30]} 19. Nxb6+ {[%emt 0:00:30]} axb6 {[%emt 0:00:30]} 20. Ra3 {[%emt 0:00:30]} Qxb4 {[%emt 0:00:30]} 21. Qf3 {[%emt 0:00:30]} f6 {[%emt 0:00:30]} 22. Qg3 {[%emt 0:00:30]} e5 {[%emt 0:00:30]} 23. Ra8+ {[%emt 0:00:30]} Kc7 {[%emt 0:00:30]} 24. Rxd8 {[%emt 0:00:30]} Kxd8 {[%emt 0:00:30]} 25. d4 {[%emt 0:00:30]} e4 {[%emt 0:00:30]} 26. Qb8+ {[%emt 0:00:30]} Ke7 {[%emt 0:00:30]} 27. Qxb7+ {[%emt 0:00:30]} Ke6 {[%emt 0:00:30]} 28. d5+ {[%emt 0:00:30]} Kf5 {[%emt 0:00:30]} 29. Qd7+ {[%emt 0:00:30]} Kf4 {[%emt 0:00:30]} 30. Rg1 {[%emt 0:00:30]} f5 {[%emt 0:00:30]} 31. dxc6 {[%emt 0:00:30]} Qd6 {[%emt 0:00:30]} 32. Rxg7 {[%emt 0:00:30]} Qxd7 {[%emt 0:00:30]} 33. Rxd7 {[%emt 0:00:30]} Rg8 {[%emt 0:00:30]} 34. c7 Bd6 35. Rxd6 {[%emt 0:01:00]} Rc8 {[%emt 0:01:00]} 36. Re6 {[%emt 0:00:30]} Kf3 {[%emt 0:00:30]} 37. Be5 {[%emt 0:00:30]} Kxf2 {[%emt 0:00:30]} 38. Rxb6 {[%emt 0:00:30]} e3 {[%emt 0:00:30]} 39. Rb8 {[%emt 0:00:30]} e2 {[%emt 0:00:30]} 40. Bg3+ {[%emt 0:00:30]} 1-0

[Event "Groningen Festival 2018-B"]
[Site "Groningen"]
[Date "2018.12.23"]
[Round "2"]
[White "Husers, Yannic"]
[Black "Slagter, Ruben"]
[Result "0-1"]
[ECO "B34"]
[WhiteElo "1864"]
[BlackElo "2086"]
[Annotator "NA RC"]
[PlyCount "64"]
[EventDate "2018.12.22"]
[EventType "swiss"]
[EventCountry "NED"]
[SourceTitle "playchess.com"]
[Source "ChessBase"]
[SourceQuality "1"]
[TimeControl "40/5400+30:1800+30"]

1. e4 {[%emt 0:04:38]} c5 {[%emt 0:00:00]} 2. Nf3 {[%emt 0:01:28]} Nc6 {[%emt 0:04:02]} 3. d4 {[%emt 0:03:16]} cxd4 {[%emt 0:00:23]} 4. Nxd4 {[%emt 0:00:09]} g6 {[%emt 0:00:43]} 5. Nc3 {[%emt 0:02:57]} Bg7 {[%emt 0:00:38]} 6. Nxc6 {[%emt 0:07:10]} bxc6 {[%emt 0:08:16]} 7. Bc4 {[%emt 0:01:15]} d6 {[%emt 0:04:09]} 8. Be3 {[%emt 0:05:27]} e6 {[%emt 0:07:54]} 9. Qd2 {[%emt 0:16:13]} d5 {[%emt 0:04:45]} 10. O-O-O {[%emt 0:00:55]} Ne7 {[%emt 0:02:17]} 11. Na4 {[%emt 0:07:48]} Qc7 {[%emt 0:07:58]} 12. exd5 {[%emt 0:06:38]} cxd5 {[%emt 0:02:29]} 13. Bb3 {[%emt 0:00:35]} O-O {[%emt 0:07:01]} 14. Kb1 {[%emt 0:05:08]} Bd7 {[%emt 0:05:26]} 15. Nc5 {[%emt 0:01:17]} a5 {[%emt 0:00:44]} 16. Ba4 {[%emt 0:00:59]} Bxa4 {[%emt 0:01:09]} 17. Nxa4 {[%emt 0:00:02]} Nf5 {[%emt 0:01:13]} 18. Bc5 {[%emt 0:01:37]} Rfb8 {[%emt 0:02:42]} 19. c3 {[%emt 0:06:56]} Qc6 {[%emt 0:05:21]} 20. Qc2 {[%emt 0:01:54]} Rb5 {[%emt 0:00:43]} 21. g4 {[%emt 0:02:19]} Nd6 {[%emt 0:01:54]} 22. Bxd6 {[%emt 0:00:47]} Qxd6 {[%emt 0:00:09]} 23. c4 {[%emt 0:01:58]} Rb4 {[%emt 0:03:37]} 24. cxd5 {[%emt 0:05:51]} exd5 {[%emt 0:00:53]} 25. Nc3 {[%emt 0:01:23]} Rab8 {[%emt 0:01:20]} 26. b3 {[%emt 0:01:27]} Qf6 {[%emt 0:01:31]} 27. Rd3 {[%emt 0:00:53]} a4 {[%emt 0:00:19]} 28. g5 {[%emt 0:00:40]} Qxg5 {[%emt 0:01:58]} 29. Nxd5 {[%emt 0:00:35]} axb3 {[%emt 0:01:06]} 30. axb3 {[%emt 0:00:27]} Qe5 {[%emt 0:02:04]} 31. Qa2 {[%emt 0:02:25]} Rd4 {[%emt 0:02:51]} 32. Rhd1 {[%emt 0:04:50]} Qxd5 {[%emt 0:00:56]} 0-1

[Event "Groningen Festival 2018-B"]
[Site "Groningen"]
[Date "2018.12.23"]
[Round "2"]
[White "Ypma, Jord"]
[Black "Rupert, Casper"]
[Result "1-0"]
[ECO "B13"]
[WhiteElo "1840"]
[BlackElo "2055"]
[Annotator "NA RC"]
[PlyCount "51"]
[EventDate "2018.12.22"]
[EventType "swiss"]
[EventCountry "NED"]
[SourceTitle "playchess.com"]
[Source "ChessBase"]
[SourceQuality "1"]
[TimeControl "40/5400+30:1800+30"]

1. d4 {[%emt 0:05:02]} d5 {[%emt 0:01:04]} 2. Bf4 {[%emt 0:00:05]} c5 {[%emt 0:00:51]} 3. e3 {[%emt 0:00:06]} Nc6 {[%emt 0:00:15]} 4. Nf3 {[%emt 0:00:10]} cxd4 {[%emt 0:00:51]} 5. exd4 {[%emt 0:00:09]} Qb6 {[%emt 0:00:15]} 6. Nc3 {[%emt 0:00:09]} Nf6 {[%emt 0:05:09]} 7. Nb5 {[%emt 0:00:32]} e5 {[%emt 0:01:57]} 8. dxe5 {[%emt 0:02:35]} Ne4 {[%emt 0:03:23]} 9. Qxd5 {[%emt 0:20:03]} Bb4+ {[%emt 0:04:36]} 10. c3 {[%emt 0:01:53]} Qxf2+ {[%emt 0:01:22]} 11. Kd1 {[%emt 0:00:06]} Bf5 {[%emt 0:02:18]} 12. cxb4 {[%emt 0:04:13]} O-O {[%emt 0:04:15]} 13. Be2 {[%emt 0:08:00]} Nxb4 {[%emt 0:09:01]} 14. Qd4 {[%emt 0:01:40]} Rfd8 {[%emt 0:00:28]} 15. Nd6 {[%emt 0:00:42]} Qxg2 {[%emt 0:05:12]} 16. Rf1 {[%emt 0:03:58]} Rac8 {[%emt 0:11:07]} 17. Nh4 {[%emt 0:01:56]} Nf2+ {[%emt 0:04:54]} 18. Qxf2 {[%emt 0:02:33]} Rxd6+ {[%emt 0:01:47]} 19. exd6 {[%emt 0:00:34]} Qd5+ {[%emt 0:00:09]} 20. Bd2 {[%emt 0:00:35]} Bc2+ {[%emt 0:04:42]} 21. Ke1 {[%emt 0:05:33]} Nd3+ {[%emt 0:01:42]} 22. Bxd3 {[%emt 0:00:08]} Bxd3 {[%emt 0:00:21]} 23. Nf5 {[%emt 0:02:38]} Qe5+ {[%emt 0:01:06]} 24. Qe3 {[%emt 0:00:55]} Qxb2 {[%emt 0:00:29]} 25. Qxd3 {[%emt 0:00:38]} Qxa1+ {[%emt 0:00:14]} 26. Kf2 {[%emt 0:00:40]} 1-0

[Event "Groningen Festival 2018-B"]
[Site "Groningen"]
[Date "2018.12.23"]
[Round "3"]
[White "Slagter, Ruben"]
[Black "Ypma, Jord"]
[Result "1-0"]
[ECO "B20"]
[WhiteElo "2086"]
[BlackElo "1840"]
[Annotator "NA RC"]
[PlyCount "85"]
[EventDate "2018.12.22"]
[EventType "swiss"]
[EventCountry "NED"]
[SourceTitle "playchess.com"]
[Source "ChessBase"]
[SourceQuality "1"]
[TimeControl "40/5400+30:1800+30"]

{[%evp 25,85,-10,0,-97,-107,-85,-71,-95,32767,32767,32767,32767,32767,32767,-63,-77,0,32767,17,11,33,-30,-5,-11,-8,-34,-22,-86,-62,-100,200,235,261,202,258,244,202,205,209,279,218,228,271,205,136,208,202,165,156,-44,-22,-52,256,355,793,914,758,754,705,802,29958,29976]} 1. e4 {[%emt 0:00:00]} c5 {[%emt 0:01:14]} 2. g3 {[%emt 0:00:00]} g6 {[%emt 0:00:21]} 3. Bg2 {[%emt 0:00:12]} Bg7 {[%emt 0:00:06]} 4. d3 {[%emt 0:00:59]} Nc6 {[%emt 0:00:14]} 5. c3 {[%emt 0:00:19]} e6 {[%emt 0:03:14] B20: Sicilian: Unusual White 2nd moves} (5... d6 6. Be3 Nf6 7. h3 O-O 8. Ne2 e5 9. O-O Re8 10. f4 exf4 11. gxf4 Nh5 12. Nd2 f5 13. Nf3 h6 {½-½ (37) Amin,B (2654)-Gopal,G (2540) Al Ain 2013}) 6. Be3 {[%emt 0:00:26]} b6 {[%emt 0:00:15]} 7. Ne2 {[%emt 0:01:56]} Nge7 {[%emt 0:00:07]} 8. O-O {[%emt 0:07:58]} Bb7 {[%emt 0:00:45]} 9. d4 $146 {[%emt 0:03:21]} ({Predecessor:} 9. Na3 d5 10. Nc2 O-O 11. Rb1 a5 12. d4 cxd4 13. cxd4 dxe4 14. Bxe4 {0-1 (47) Bezborodova,E-Stetsiuk,E Odessa 2008}) 9... d6 {[%emt 0:00:14]} 10. Qa4 {[%emt 0:08:11]} O-O {[%emt 0:01:18]} 11. Rd1 {[%emt 0:06:43]} Qc7 {[%emt 0:00:57]} 12. f4 {[%emt 0:02:13]} Rfd8 {[%emt 0:04:39]} 13. Na3 {[%emt 0:04:09]} a6 {[%emt 0:00:29]} 14. d5 {[%emt 0:04:00]} (14. dxc5 $11 dxc5 15. Qc2) 14... exd5 {[%emt 0:01:41]} 15. exd5 {[%emt 0:00:08]} Nb8 {[%emt 0:01:46]} 16. Qc2 {[%emt 0:06:43]} Re8 {[%emt 0:01:10]} 17. Bf2 {[%emt 0:03:07]} b5 {[%emt 0:02:30]} 18. Qd2 {[%emt 0:03:13]} Nd7 {[%emt 0:00:44]} 19. Nc2 {[%emt 0:00:19]} Nb6 {[%emt 0:03:16]} 20. Ne3 {[%emt 0:01:57]} Bc8 {[%emt 0:01:18]} (20... Qc8 $15) 21. g4 {[%emt 0:02:29]} Kh8 {[%emt 0:03:31]} 22. Ng3 {[%emt 0:03:26]} Ng8 {[%emt 0:03:37]} 23. h4 {[%emt 0:04:27]} (23. Re1 $14) 23... Nh6 {[%emt 0:00:40] Remove Defender} 24. Bf3 {[%emt 0:01:11]} f5 {[%emt 0:01:51]} 25. g5 {[%emt 0:01:43]} Ng4 {[%emt 0:00:15]} 26. Bxg4 {[%emt 0:01:43]} (26. Re1 $11 Bb7 27. Nxg4 fxg4 28. Bxg4) 26... fxg4 {[%emt 0:00:30]} 27. h5 {[%emt 0:01:12] [#]} (27. Qc2 $15) 27... Rf8 $2 {[%emt 0:01:00]} (27... Qf7 $1 $17 28. hxg6 Qxf4) 28. h6 {[%emt 0:01:21] Trapped Piece} Rxf4 {[%emt 0:00:25]} 29. hxg7+ {[%emt 0:00:39]} Qxg7 {[%emt 0:00:13]} 30. Ng2 {[%emt 0:03:48]} Rf3 {[%emt 0:02:14]} 31. Nh4 {[%emt 0:07:21]} Nc4 {[%emt 0:02:08]} 32. Qe2 {[%emt 0:01:29]} ({Less strong is} 32. Nxf3 Nxd2 33. Nxd2 Bf5 $14) 32... Rf7 {[%emt 0:01:07]} 33. Re1 {[%emt 0:02:38]} Bf5 {[%emt 0:01:36]} 34. a4 {[%emt 0:03:21]} Raf8 {[%emt 0:00:38] [#]} 35. axb5 $1 {[%emt 0:05:48]} axb5 {[%emt 0:00:05]} 36. b3 {[%emt 0:06:02]} Ne5 {[%emt 0:00:04]} 37. Ngxf5 $2 {[%emt 0:02:06]} (37. Nh1 $16) 37... gxf5 {[%emt 0:00:09]} 38. g6 {[%emt 0:00:58]} (38. Bxc5 $5 Qxg5 39. Bxd6 Nf3+ 40. Kg2 Nxh4+ 41. Kf1 $11) 38... hxg6 $2 {[%emt 0:00:18] [#]} (38... Nxg6 $11 39. Nxg6+ Qxg6) 39. Bxc5 $1 {[%emt 0:00:56]} Re8 $2 {[%emt 0:00:51]} (39... dxc5 40. Qxe5 Rf6) 40. Bxd6 {[%emt 0:00:49]} Nf3+ {[%emt 0:06:52]} 41. Nxf3 {[%emt 0:02:11]} Rxe2 {[%emt 0:00:00]} 42. Rxe2 {[%emt 0:00:14]} gxf3 {[%emt 0:02:34]} 43. Rh2+ {[%emt 0:00:58]} 1-0

[Event "Groningen Festival 2018-B"]
[Site "Groningen"]
[Date "2018.12.23"]
[Round "3"]
[White "Nixdorf, Andre"]
[Black "Santema, Tjeerd"]
[Result "0-1"]
[ECO "A32"]
[WhiteElo "1977"]
[BlackElo "1776"]
[Annotator "NA RC"]
[PlyCount "170"]
[EventDate "2018.12.22"]
[EventType "swiss"]
[EventCountry "NED"]
[SourceTitle "playchess.com"]
[Source "ChessBase"]
[SourceQuality "1"]
[TimeControl "40/5400+30:1800+30"]

{[%evp 22,170,108,85,130,88,84,78,71,48,82,31,27,8,8,0,2,0,0,0,0,-3,5,6,2,-20,0,-13,31,19,14,21,16,26,30,22,22,10,20,15,17,7,9,0,0,0,0,0,0,0,0,0,58,70,90,0,84,85,108,109,85,93,89,85,113,79,109,0,109,104,108,104,104,0,104,0,106,59,50,32767,32767,32767,32767,32767,32767,32767,32767,32767,32767,32767,32767,32767,32767,32767,32767,0,0,0,0,0,0,0,0,0,0,0,0,0,0,-197,-99,-199,-266,-396,-39,-178,0,-290,-420,-483,-585,-682,-806,-693,-262,-463,32767,32767,32767,32767,32767,32767,0,-463,0,-1014,-1173,-1300,-1275,-1031,-779,-2043,-2103,-7200,-1079,-1169,-852,-1215,-558,-468,-727]} 1. d4 {[%emt 0:00:19]} Nf6 {[%emt 0:00:00]} 2. Nf3 {[%emt 0:00:07]} e6 {[%emt 0:00:00]} 3. c4 {[%emt 0:00:07]} c5 {[%emt 0:00:00]} 4. g3 {[%emt 0:03:42]} cxd4 {[%emt 0:01:47]} 5. Nxd4 {[%emt 0:04:21]} Nc6 {[%emt 0:00:16]} 6. Bg2 {[%emt 0:08:43]} Bc5 {[%emt 0:07:53]} 7. Nb3 {[%emt 0:01:28]} Bb6 {[%emt 0:03:44] A32: Symmetrical English: 2 Nf3 Nf6 3 d4 cxd4 4 Nxd4 e6} (7... Be7 8. Nc3 b6 9. Nd4 Bb7 10. Nxc6 Bxc6 11. Bxc6 dxc6 12. O-O O-O 13. b3 Qc8 14. Bg5 h6 15. Bxf6 Bxf6 16. Qc2 {½-½ (35) Ivanchuk,V (2720)-Rapport,R (2693) Ashdod 2015}) 8. Nc3 {[%emt 0:04:08]} O-O {[%emt 0:02:29]} 9. O-O {[%emt 0:02:12]} a6 {[%emt 0:04:53]} 10. Bf4 {[%emt 0:12:05]} Bc7 {[%emt 0:13:05]} 11. Bd6 {[%emt 0:05:09]} Bxd6 {[%emt 0:03:04]} 12. Qxd6 {[%emt 0:00:05]} Qe7 {[%emt 0:00:22]} 13. Qxe7 $146 {[%emt 0:06:15]} ({Predecessor:} 13. Qf4 Rd8 14. Rfd1 d6 15. Qe3 {1-0 (23) Hess,C (2203)-Nickel,J (1899) Buesum 2015}) 13... Nxe7 {[%emt 0:00:05]} 14. Rfd1 {[%emt 0:04:04]} Rb8 {[%emt 0:04:01]} 15. Rd2 {[%emt 0:05:12]} b6 {[%emt 0:05:41]} 16. Nd4 {[%emt 0:04:16]} ({White should play} 16. e4 $16) 16... Bb7 {[%emt 0:05:39]} 17. Rc1 {[%emt 0:09:06]} Bxg2 {[%emt 0:02:06]} 18. Kxg2 {[%emt 0:00:03]} Rfc8 {[%emt 0:04:51]} 19. Nd1 {[%emt 0:03:45]} Rb7 {[%emt 0:06:31]} 20. Ne3 {[%emt 0:01:07]} Rbc7 {[%emt 0:02:55]} 21. Rdc2 {[%emt 0:02:41]} Nc6 {[%emt 0:01:57]} 22. Nxc6 {[%emt 0:01:52]} Rxc6 {[%emt 0:00:06]} 23. f4 {[%emt 0:01:20]} Kf8 {[%emt 0:04:06]} 24. Kf3 {[%emt 0:01:19]} d5 {[%emt 0:03:53]} 25. cxd5 {[%emt 0:00:30]} Rxc2 {[%emt 0:00:09]} 26. Rxc2 {[%emt 0:00:05]} Rxc2 {[%emt 0:00:10]} 27. Nxc2 {[%emt 0:00:04]} Nxd5 {[%emt 0:00:14]} 28. e4 {[%emt 0:00:31]} Nc7 {[%emt 0:02:25]} 29. Ke3 {[%emt 0:01:10]} Ke7 {[%emt 0:00:20]} 30. Kd4 {[%emt 0:01:03]} Kd6 {[%emt 0:04:19]} 31. b4 {[%emt 0:09:33]} f6 {[%emt 0:04:48]} 32. Kc4 {[%emt 0:02:16]} e5 {[%emt 0:02:40]} 33. f5 {[%emt 0:01:03]} Kc6 {[%emt 0:03:52]} 34. g4 {[%emt 0:01:52]} Ne8 {[%emt 0:00:41]} 35. a4 {[%emt 0:01:16]} Nd6+ {[%emt 0:03:30]} 36. Kd3 {[%emt 0:00:03]} b5 {[%emt 0:00:52]} (36... a5 $11) 37. a5 {[%emt 0:00:29]} Nc4 {[%emt 0:00:38]} 38. Kc3 {[%emt 0:01:22]} (38. Na1 $16) 38... h6 {[%emt 0:01:16]} 39. h4 {[%emt 0:00:47]} Kb7 {[%emt 0:01:41]} 40. Kd3 {[%emt 0:00:50]} Kc6 {[%emt 0:01:24]} 41. Na1 {[%emt 0:31:17]} Nd6 {[%emt 0:31:29]} 42. Nb3 {[%emt 0:00:35]} Nb7 {[%emt 0:00:00]} 43. Kc3 {[%emt 0:00:00]} Kd6 {[%emt 0:00:00]} 44. Kd3 {[%emt 0:00:00]} (44. Nc1 $16) 44... Kd7 $11 {[%emt 0:00:00] keeps the balance.} 45. Ke3 {[%emt 0:00:00]} Kd6 $1 {[%emt 0:00:00]} 46. Kf3 {[%emt 0:00:00]} (46. Nc1 $16) 46... Ke7 {[%emt 0:00:00]} 47. Ke3 {[%emt 0:00:00]} ({White should play} 47. Kg3 $16) 47... Kd6 {[%emt 0:00:00]} 48. Kd3 {[%emt 0:00:00]} Kc7 {[%emt 0:00:00]} 49. Nd2 {[%emt 0:00:00]} ({White should try} 49. Ke2 $16) 49... Nd8 {[%emt 0:00:00]} 50. Nf3 {[%emt 0:00:00]} Nf7 {[%emt 0:00:00]} 51. Ne1 {[%emt 0:00:00]} Nd8 {[%emt 0:00:00]} 52. Kc3 {[%emt 0:00:00]} Kc6 {[%emt 0:00:00]} 53. Ng2 {[%emt 0:00:00]} Kd7 {[%emt 0:00:00]} 54. Ne3 {[%emt 0:00:00]} Nc6 {[%emt 0:00:00]} 55. Nd5 {[%emt 0:00:00]} Nd4 {[%emt 0:00:00]} 56. Kd3 {[%emt 0:00:00]} Nf3 {[%emt 0:00:00]} 57. Ke3 {[%emt 0:00:00]} Nh2 {[%emt 0:00:00]} 58. g5 $2 {[%emt 0:00:00]} (58. Nb6+ $18 Kd6 59. Ke2) 58... fxg5 {[%emt 0:00:00]} 59. hxg5 {[%emt 0:00:00]} hxg5 {[%emt 0:00:00]} 60. Kf2 {[%emt 0:06:43]} Ng4+ $1 {[%emt 0:00:00]} 61. Kf3 {[%emt 0:00:10]} Nh6 {[%emt 0:00:00]} 62. Kg3 {[%emt 0:00:59]} Kd6 {[%emt 0:00:00]} 63. Nc3 {[%emt 0:00:21]} Kd7 {[%emt 0:00:00]} 64. Nd5 {[%emt 0:00:14]} Ng8 {[%emt 0:00:00]} 65. Nc3 $2 {[%emt 0:01:19]} (65. Kf3 $11 {and White is okay.}) 65... Nf6 {[%emt 0:00:00]} 66. Kf3 {[%emt 0:00:43] [#]} Ke7 $1 {[%emt 0:00:00]} 67. Kg3 {[%emt 0:00:34]} Kd6 {[%emt 0:00:54]} 68. Kf3 {[%emt 0:00:10] [#]} ({White has to play} 68. Kf2 $1 $15) 68... Ke7 {[%emt 0:02:32]} (68... Kd7 $1 $19 69. Ke3 g4) 69. Kg3 {[%emt 0:00:08]} Kf7 {[%emt 0:01:55]} 70. Kf3 {[%emt 0:01:13]} g6 {[%emt 0:00:57]} 71. fxg6+ {[%emt 0:01:16]} Kxg6 $2 {[%emt 0:00:11]} 72. Kg3 $1 {[%emt 0:01:58]} Kf7 $2 {[%emt 0:00:10]} 73. Kf3 {[%emt 0:00:11] [#]} Ke6 {[%emt 0:00:06]} (73... Kg7 $1 $19 {[%cal Rg7g6]} 74. Ke2 g4) 74. Kg3 {[%emt 0:00:19] [#]} Kd6 {[%emt 0:01:53]} ({Better is} 74... Ke7 $1 $19 75. Kf3 Kf7) 75. Kf3 {[%emt 0:00:08]} Ke6 {[%emt 0:01:57]} 76. Kg3 {[%emt 0:00:07]} Kf7 {[%emt 0:01:24]} 77. Kf3 {[%emt 0:00:12]} Kg6 {[%emt 0:00:32]} 78. Kg3 {[%emt 0:00:11]} Kh5 {[%emt 0:01:42]} 79. Kh3 {[%emt 0:00:33]} g4+ {[%emt 0:00:11]} 80. Kg3 {[%emt 0:00:07]} Kg5 {[%emt 0:00:06]} 81. Kg2 {[%emt 0:02:26]} Kf4 {[%emt 0:00:41]} (81... Kh4 $142 82. Kh2 g3+ 83. Kg1 Nh5) 82. Kf1 {[%emt 0:01:10]} Nd7 {[%emt 0:01:39]} (82... Kf3 $142 83. Ne2 Nxe4) 83. Kf2 {[%emt 0:00:31]} g3+ {[%emt 0:00:21]} 84. Kg2 {[%emt 0:00:05]} Ke3 {[%emt 0:00:27]} (84... Nb8 $142 85. Nd5+ Kxe4) 85. Kxg3 $19 {[%emt 0:01:43]} Kd4 {[%emt 0:00:02]} 0-1